fUSD/lending_fUSD_20251115
["ID","MTS","AMOUNT","RATE_DAILY","PERIOD"]
[394016410,1763191401297,200.0,0.00013589,2]
[394016416,1763191443910,150.0,0.00016878,120]
[394016417,1763191553668,10000.01,0.000156,2]
[394016418,1763191553690,10000.01,0.000156,2]
[394016419,1763191553712,10000.01,0.000156,2]
[394016420,1763191553734,10000.01,0.000156,2]
[394016421,1763191553757,10000.01,0.000156,2]
[394016422,1763191553778,10000.01,0.000156,2]
[394016423,1763191553802,5537.96197142,0.000156,2]
[394016424,1763191614541,748.36770441,0.000162,5]
[394016425,1763191614567,5571.94730749,0.000162,5]
[394016442,1763191831477,-866.79,0.00016438,2]
[394016443,1763191831486,-410.28585585,0.00016773,2]
[394016444,1763191831496,-300.0,0.00016785,2]
[394016445,1763191831505,-1071.71976715,0.00016785,2]
[394016446,1763191831515,-128.28023285,0.00016785,2]
[394016447,1763191831524,-150.0,0.00016785,2]
[394016448,1763191831534,-60000.06,0.00016786,2]
[394016449,1763191831543,-151.0,0.00016876,2]
[394016450,1763191831552,-151.0,0.00016876,2]
[394016451,1763191831562,-151.0,0.00016876,2]
[394016452,1763191831571,-151.0,0.00016876,2]
[394016453,1763191831580,-151.0,0.00016876,2]
[394016454,1763191831590,-151.0,0.00016876,2]
[394016455,1763191831598,-151.0,0.00016876,2]
[394016456,1763191831607,-151.0,0.00016876,2]
[394016457,1763191831616,-151.0,0.00016876,2]
[394016458,1763191831625,-206.35089017,0.00016876,2]
[394016459,1763191831635,-150.0,0.00016878,2]
[394016460,1763191831644,-182.93,0.0001692,2]
[394016461,1763191831653,-500.0,0.00016973,2]
[394016462,1763191831663,-242.05974148,0.00016999,2]
[394016463,1763191831672,-500.0,0.00016999,2]
[394016464,1763191831682,-500.0,0.00016999,2]
[394016465,1763191831691,-500.0,0.00016999,2]
[394016466,1763191831701,-500.0,0.00016999,2]
[394016467,1763191831710,-228.45392061,0.00016999,2]
[394016469,1763191831719,-500.0,0.00016999,2]
[394016470,1763191831728,-500.0,0.00016999,2]
[394016471,1763191831738,-500.0,0.00016999,2]
[394016472,1763191831747,-500.0,0.00016999,2]
[394016473,1763191831756,-500.0,0.00016999,2]
[394016474,1763191831764,-500.0,0.00016999,2]
[394016475,1763191831774,-500.0,0.00016999,2]
[394016476,1763191831783,-500.0,0.00016999,2]
[394016477,1763191831792,-500.0,0.00016999,2]
[394016478,1763191831801,-500.0,0.00016999,2]
[394016480,1763191831811,-500.0,0.00016999,2]
[394016482,1763191831820,-500.0,0.00016999,2]
[394016484,1763191831830,-285.69901678,0.00016999,2]
[394016485,1763191831838,-500.0,0.00016999,2]
[394016486,1763191831848,-500.0,0.00016999,2]
[394016488,1763191831858,-5486.04911733,0.00017,2]
[394016496,1763191837642,-2177.62818745,0.00017,2]
[394016497,1763191837654,-275.84480005,0.00017,2]
[394016696,1763191839748,-123910.41811351,0.00017,2]
[394016698,1763191839757,-999.0,0.00017093,3]
[394016699,1763191839766,-1247.39,0.00017118,2]
[394016701,1763191839775,-151.21,0.00017278,2]
[394016703,1763191839784,-166.68,0.00017393,2]
[394016705,1763191839793,-2000.0,0.000175,2]
[394016707,1763191839802,-500.0,0.00017521,2]
[394016710,1763191839811,-252.0,0.00017566,2]
[394016712,1763191839821,-500.0,0.00017589,2]
[394016713,1763191839830,-168.0,0.00017705,2]
[394016715,1763191839839,-478.96003305,0.00017845,2]
[394016718,1763191839849,-260.786,0.0001791,2]
[394016720,1763191839858,-1000.0,0.0001797,2]
[394016721,1763191839867,-569.41122452,0.0001797,2]
[394016723,1763191839876,-500.0,0.0001797,2]
[394016725,1763191839886,-1000.0,0.0001797,2]
[394016727,1763191839894,-505.87866112,0.00017973,2]
[394016729,1763191839904,-502.22144577,0.00017973,2]
[394016731,1763191839913,-501.26088191,0.00017973,2]
[394016733,1763191839923,-501.78304251,0.00017973,2]
[394016736,1763191839932,-500.0,0.00017973,2]
[394016738,1763191839943,-500.0,0.00017973,2]
[394016740,1763191839952,-462.19976098,0.00017973,2]
[394016742,1763191839961,-506.30937773,0.00017973,2]
[394016743,1763191839970,-500.0,0.00017973,2]
[394016746,1763191839979,-500.0,0.00017973,2]
[394016747,1763191839988,-502.41579198,0.00017973,2]
[394016749,1763191839997,-500.0,0.00017973,2]
[394016751,1763191840006,-500.0,0.00017973,2]
[394016753,1763191840015,-500.0,0.00017973,2]
[394016755,1763191840024,-500.0,0.00017973,2]
[394016757,1763191840033,-500.0,0.00017973,2]
[394016759,1763191840041,-2003.5984889,0.0001799,2]
[394016761,1763191840051,-1421.731305,0.0001799,2]
[394016763,1763191840059,-34695.5356966,0.0001799,2]
[394016765,1763191840069,-168.0,0.0001799,2]
[394016767,1763191840079,-166.0,0.00017991,2]
[394016769,1763191840088,-253.61607805,0.00017991,2]
[394016771,1763191840097,-151.0,0.00017991,2]
[394016773,1763191840106,-151.0,0.00017991,2]
[394016775,1763191840119,-151.0,0.00017991,2]
[394016778,1763191840128,-151.0,0.00017991,2]
[394016779,1763191840137,-151.0,0.00017991,2]
[394016781,1763191840146,-8687.64,0.00017997,2]
[394016783,1763191840157,-1502.5338562,0.00017997,2]
[394016785,1763191840166,-500.0,0.00017998,2]
[394016787,1763191840175,-167.25808473,0.00017998,2]
[394016789,1763191840186,-192.5840059,0.00017998,2]
[394016791,1763191840194,-150718.07144873,0.00017999,2]
[394016793,1763191840203,-300.0,0.00017999,2]
[394016795,1763191840212,-508.81616025,0.00017999,2]
[394016797,1763191840224,-151.0,0.00017999,2]
[394016799,1763191840233,-151.0,0.00017999,2]
[394016801,1763191840244,-157.455111,0.00017999,2]
[394016804,1763191840253,-151.0,0.00017999,2]
[394016805,1763191840262,-151.0,0.00017999,2]
[394016807,1763191840271,-151.0,0.00017999,2]
[394016810,1763191840281,-151.0,0.00017999,2]
[394016812,1763191840290,-151.0,0.00017999,2]
[394016813,1763191840300,-151.0,0.00017999,2]
[394016815,1763191840309,-151.0,0.00017999,2]
[394016817,1763191840318,-240.1269,0.00017999,2]
[394016819,1763191840327,-236.43235,0.00017999,2]
[394016821,1763191840336,-236.43235,0.00017999,2]
[394016823,1763191840345,-184.448295,0.00017999,2]
[394016825,1763191840354,-770.275431,0.00017999,2]
[394016827,1763191840362,-151.0,0.00017999,2]
[394016829,1763191840371,-236.43235,0.00017999,2]
[394016831,1763191840381,-236.43235,0.00017999,2]
[394016833,1763191840390,-151.0,0.00017999,2]
[394016835,1763191840399,-338.223926,0.00017999,2]
[394016837,1763191840408,-770.275431,0.00017999,2]
[394016839,1763191840417,-274.514659,0.00017999,2]
[394016841,1763191840427,-338.223926,0.00017999,2]
[394016843,1763191840436,-151.0,0.00017999,2]
[394016845,1763191840444,-151.0,0.00017999,2]
[394016847,1763191840453,-770.275431,0.00017999,2]
[394016849,1763191840463,-274.514659,0.00017999,2]
[394016851,1763191840471,-338.223926,0.00017999,2]
[394016853,1763191840480,-151.0,0.00017999,2]
[394016854,1763191840489,-770.275431,0.00017999,2]
[394016855,1763191840498,-274.514659,0.00017999,2]
[394016856,1763191840506,-338.223926,0.00017999,2]
[394016857,1763191840515,-274.514659,0.00017999,2]
[394016858,1763191840523,-151.0,0.00017999,2]
[394016859,1763191840532,-153.680311,0.00017999,2]
[394016860,1763191840542,-151.0,0.00017999,2]
[394016861,1763191840551,-151.0,0.00017999,2]
[394016862,1763191840560,-151.0,0.00017999,2]
[394016863,1763191840570,-151.0,0.00017999,2]
[394016864,1763191840578,-151.0,0.00017999,2]
[394016865,1763191840587,-151.0,0.00017999,2]
[394016866,1763191840595,-175.174058,0.00017999,2]
[394016867,1763191840604,-151.0,0.00017999,2]
[394016868,1763191840613,-151.0,0.00017999,2]
[394016869,1763191840621,-178.013643,0.00017999,2]
[394016870,1763191840630,-1572746.04164404,0.00018,2]
[394016871,1763191840642,-410.28585585,0.00018,2]
[394016872,1763191840653,-85766.41174607,0.00018,2]
[394016873,1763191840664,-27731.12742962,0.00018,2]
[394016879,1763191842849,-3033.44673126,0.00018,2]
[394016880,1763191842860,-758.14934782,0.00018,2]
[394016881,1763191842944,-3007.08585585,0.00018,2]
[394016886,1763191928462,1249.141802,7.945e-05,2]
[394016887,1763191989617,150.62681378,0.0003013,120]
[394016888,1763192002631,200.0,0.00010959,2]
[394016893,1763192602476,200.0,0.00010959,2]
[394016911,1763193031748,-166.66,0.00016239,2]
[394016912,1763193031757,-166.66,0.00016581,2]
[394016913,1763193031767,-410.3880045,0.00016586,2]
[394016914,1763193031778,-1923.4730955,0.00016586,2]
[394016915,1763193031787,-300.0,0.00016685,2]
[394016916,1763193031796,-550.0,0.00016685,2]
[394016917,1763193031805,-150.0,0.00016691,2]
[394016918,1763193031815,-300.0,0.00016823,2]
[394016919,1763193031824,-300.0,0.00016823,2]
[394016920,1763193031833,-482.69043777,0.00016823,2]
[394016921,1763193031856,-717.30956223,0.00016823,2]
[394016922,1763193031865,-7423.4,0.00016824,2]
[394016923,1763193031875,-200.0,0.00016825,2]
[394016924,1763193031884,-3460.1,0.00016826,2]
[394016925,1763193031894,-166.66,0.00016922,2]
[394016926,1763193031903,-250.0,0.00017,2]
[394016927,1763193031912,-10084.91,0.00017,2]
[394016928,1763193031921,-16514.9,0.00017,2]
[394016929,1763193031930,-6079.2,0.00017,2]
[394016930,1763193031939,-250.0,0.0001715,2]
[394016931,1763193031948,-1000.0,0.00017253,2]
[394016932,1763193031957,-166.66,0.00017264,2]
[394016933,1763193031967,-846.92,0.00017277,2]
[394016934,1763193031976,-168.0,0.0001735,2]
[394016935,1763193031985,-2000.0,0.000175,2]
[394016936,1763193031994,-168.0,0.00017566,2]
[394016938,1763193032003,-166.66,0.00017606,2]
[394016940,1763193032013,-168.0,0.00017771,2]
[394016941,1763193032022,-168.0,0.00017782,2]
[394016943,1763193032031,-168.0,0.00017788,2]
[394016945,1763193032040,-527.98,0.00017808,2]
[394016947,1763193032049,-478.96003305,0.00017847,2]
[394016948,1763193032059,-195.0,0.00017863,2]
[394016950,1763193032068,-151.000001,0.00017899,2]
[394016952,1763193032077,-208.629,0.00017924,2]
[394016954,1763193032086,-168.0,0.00017935,2]
[394016956,1763193032095,-166.66,0.00017948,2]
[394016957,1763193032105,-500.0,0.0001797,2]
[394016958,1763193032114,-1000.0,0.0001797,2]
[394016959,1763193032123,-168.0,0.00017972,2]
[394016960,1763193032132,-500.0,0.00017973,2]
[394016961,1763193032141,-168.0,0.00017973,2]
[394016962,1763193032150,-500.0,0.00017998,2]
[394016963,1763193032159,-500.0,0.00017998,2]
[394016964,1763193032170,-500.0,0.00017998,2]
[394016965,1763193032179,-500.0,0.00017998,2]
[394016966,1763193032188,-492.02698167,0.00017998,2]
[394016967,1763193032198,-518.39295898,0.00017998,2]
[394016968,1763193032207,-187.45592086,0.00017998,2]
[394016969,1763193032217,-2426.99288253,0.00017999,2]
[394016970,1763193032258,-449.19166693,0.00017999,2]
[394017014,1763193039889,-147841.88689927,0.00017999,2]
[394017015,1763193039899,-300.0,0.00017999,2]
[394017016,1763193039909,-300.0,0.00017999,2]
[394017017,1763193039918,-1637384.22365113,0.00018,2]
[394017018,1763193039936,-2657.60794755,0.00018,2]
[394017049,1763193045738,-825.02419996,0.00018,2]
[394017050,1763193045749,-1997.73019128,0.00018,2]
[394017051,1763193045875,-1605.87795248,0.00018,2]
[394017052,1763193046116,-700.03651592,0.00018,2]
[394017054,1763193596202,156.0,0.000301,120]
[394017055,1763193609995,293.27100809,0.00030137,120]
[394017074,1763194231907,-182.93,0.00016407,2]
[394017075,1763194231917,-300.0,0.00016485,2]
[394017076,1763194231927,-1200.0,0.00016485,2]
[394017077,1763194231937,-452.03381624,0.00016485,2]
[394017078,1763194231946,-168.71032878,0.00016485,2]
[394017079,1763194231956,-500.0,0.00016485,2]
[394017080,1763194231965,-358.71710229,0.00016485,2]
[394017081,1763194231975,-304.94039826,0.00016486,2]
[394017082,1763194231985,-382.62550993,0.00016486,2]
[394017083,1763194232098,-1079.8056852,0.00016486,2]
[394017084,1763194232108,-1664.03893274,0.00016486,2]
[394017085,1763194232119,-79214.56116726,0.00016486,2]
[394017086,1763194232129,-300.0,0.00016522,2]
[394017087,1763194232138,-200.0,0.00016559,2]
[394017088,1763194232151,-623.69,0.00016559,2]
[394017089,1763194232161,-434.25367248,0.00016573,2]
[394017090,1763194232170,-1000.0,0.00016586,2]
[394017091,1763194232179,-11305.3994,0.00016586,2]
[394017092,1763194232188,-8687.64,0.0001659,2]
[394017093,1763194232198,-160.11,0.00016634,2]
[394017094,1763194232207,-1462.4311951,0.00016643,2]
[394017095,1763194232217,-515.17,0.00016659,2]
[394017096,1763194232226,-500.0,0.00016758,2]
[394017097,1763194232235,-4975.0,0.00016765,2]
[394017098,1763194232245,-1462.4311951,0.000168,2]
[394017099,1763194232254,-1462.4311951,0.00016957,2]
[394017101,1763194232264,-250.0,0.00017,2]
[394017103,1763194232273,-200.0,0.00017,6]
[394017105,1763194232283,-500.0,0.00017041,2]
[394017107,1763194232292,-500.0,0.000171,6]
[394017109,1763194232301,-1462.4311951,0.00017114,2]
[394017111,1763194232311,-700.0,0.000172,6]
[394017113,1763194232320,-550.1,0.00017205,2]
[394017115,1763194232329,-550.1,0.00017205,2]
[394017117,1763194232338,-550.1,0.00017205,2]
[394017118,1763194232347,-550.1,0.00017205,2]
[394017119,1763194232356,-550.1,0.00017205,2]
[394017120,1763194232365,-550.1,0.00017205,2]
[394017121,1763194232374,-550.1,0.00017205,2]
[394017122,1763194232384,-550.1,0.00017205,2]
[394017123,1763194232394,-550.1,0.00017205,2]
[394017124,1763194232403,-490.04414899,0.00017205,2]
[394017129,1763194240169,-580.4961616,0.00016486,2]
[394017130,1763194240180,-2007.70377253,0.00016486,2]
[394017131,1763194240191,-7883.72905276,0.00016486,2]
[394017132,1763194240218,-206162.08821311,0.00016486,2]
[394017133,1763194240228,-60.05585101,0.00017205,2]
[394017134,1763194240237,-550.1,0.00017205,2]
[394017135,1763194240247,-550.1,0.00017205,2]
[394017136,1763194240256,-5888.0,0.00017253,2]
[394017137,1763194240266,-1462.4311951,0.00017272,2]
[394017138,1763194240275,-550.1,0.000173,2]
[394017139,1763194240285,-1000.0,0.000173,6]
[394017140,1763194240295,-4975.0,0.00017392,2]
[394017141,1763194240304,-4975.0,0.00017392,2]
[394017142,1763194240314,-550.1,0.000174,2]
[394017143,1763194240323,-550.1,0.000174,2]
[394017144,1763194240332,-550.1,0.000174,2]
[394017145,1763194240350,-550.1,0.000174,2]
[394017146,1763194240364,-1200.0,0.000174,6]
[394017147,1763194240373,-1462.4311951,0.00017429,2]
[394017148,1763194240383,-1000.0,0.000175,2]
[394017150,1763194240392,-200.0,0.000175,6]
[394017152,1763194240401,-550.1,0.00017534,2]
[394017154,1763194240411,-550.1,0.00017534,2]
[394017156,1763194240420,-150.0,0.00017577,2]
[394017158,1763194240429,-1462.4311951,0.00017586,2]
[394017160,1763194240439,-200.0,0.000176,6]
[394017162,1763194240448,-168.0,0.00017639,2]
[394017164,1763194240457,-200.0,0.000177,6]
[394017166,1763194240467,-1462.4311951,0.00017743,2]
[394017168,1763194240476,-168.76,0.000178,2]
[394017169,1763194240485,-165.0,0.000178,2]
[394017171,1763194240494,-173.0,0.000178,3]
[394017173,1763194240503,-156.0,0.000178,3]
[394017175,1763194240513,-200.0,0.000178,6]
[394017177,1763194240522,-478.96003305,0.00017849,2]
[394017179,1763194240531,-200.0,0.00017856,2]
[394017181,1763194240541,-1462.4311951,0.000179,2]
[394017183,1763194240550,-600.0,0.000179,6]
[394017185,1763194240559,-5975.47792303,0.000179,2]
[394017187,1763194240568,-166.903,0.00017927,2]
[394017189,1763194240576,-500.0,0.0001797,2]
[394017191,1763194240586,-1000.0,0.0001797,2]
[394017193,1763194240595,-504.1689478,0.00017973,2]
[394017195,1763194240604,-502.2697654,0.00017973,2]
[394017197,1763194240613,-501.0314421,0.00017973,2]
[394017198,1763194240622,-500.0,0.00017973,2]
[394017200,1763194240631,-501.78028737,0.00017973,2]
[394017202,1763194240640,-169.37,0.00017973,2]
[394017204,1763194240650,-169.37,0.00017973,2]
[394017206,1763194240660,-169.37,0.00017973,2]
[394017208,1763194240669,-169.37,0.00017973,2]
[394017210,1763194240678,-169.37,0.00017973,2]
[394017212,1763194240687,-169.37,0.00017973,2]
[394017214,1763194240698,-169.37,0.00017973,2]
[394017216,1763194240707,-169.37,0.00017973,2]
[394017218,1763194240717,-169.37,0.00017973,2]
[394017220,1763194240726,-169.37,0.00017973,2]
[394017222,1763194240735,-169.37,0.00017973,2]
[394017224,1763194240744,-169.37,0.00017973,2]
[394017226,1763194240753,-169.37,0.00017973,2]
[394017228,1763194240762,-169.37,0.00017973,2]
[394017230,1763194240771,-169.37,0.00017973,2]
[394017232,1763194240781,-169.37,0.00017973,2]
[394017234,1763194240790,-169.37,0.00017973,2]
[394017236,1763194240800,-169.37,0.00017973,2]
[394017238,1763194240809,-169.37,0.00017973,2]
[394017239,1763194240818,-169.37,0.00017973,2]
[394017240,1763194240828,-169.37,0.00017973,2]
[394017241,1763194240837,-169.37,0.00017973,2]
[394017242,1763194240846,-169.37,0.00017973,2]
[394017243,1763194240855,-2254.254537,0.00017973,2]
[394017244,1763194240865,-7438.8257399,0.00017973,2]
[394017245,1763194240874,-29947.6388854,0.00017973,2]
[394017246,1763194240883,-172.07274561,0.00017999,2]
[394017247,1763194240892,-300.0,0.00017999,2]
[394017248,1763194240901,-197.62494589,0.00017999,2]
[394017249,1763194240911,-500.0,0.00017999,2]
[394017250,1763194240920,-598.54926081,0.00017999,2]
[394017251,1763194240929,-225.9665183,0.00017999,2]
[394017252,1763194240938,-604735.06203532,0.00018,2]
[394017253,1763194240947,-300.25881839,0.00018,2]
[394017254,1763194240957,-884525.79562541,0.00018,2]
[394017262,1763194243374,-550.1,0.000176,2]
[394017263,1763194243384,-2043.47513806,0.00018,2]
[394017264,1763194243396,-5828.86619033,0.00018,2]
[394017265,1763194245914,-2128.58188116,0.00018,2]
[394017281,1763194246137,-261.98000005,0.00018,2]
[394017282,1763194246148,-688.7483796,0.00018,2]
[394017293,1763194317529,150.0,0.00018155,120]
[394017310,1763194737222,314.96064187,0.0003013,120]
[394017311,1763194785639,4853.0,0.00015,2]
[394017318,1763195001640,200.0,0.0001488,2]
[394017323,1763195139387,10000.0,0.00022,30]
[394017324,1763195224488,425.86878708,0.00015,2]
[394017330,1763195297347,10000.0,0.00016,7]
[394017332,1763195329285,200.0,0.000169,6]
[394017334,1763195425805,151.1,8.298e-05,2]
[394017347,1763195432330,-166.66,0.00015938,2]
[394017348,1763195432340,-166.66,0.00016274,2]
[394017349,1763195432350,-722.32,0.00016438,2]
[394017350,1763195432359,-166.66,0.00016609,2]
[394017351,1763195432368,-300.0,0.00016662,2]
[394017352,1763195432378,-151.0,0.00016939,2]
[394017353,1763195432391,-166.66,0.00016945,2]
[394017354,1763195432400,-502.5184944,0.00016973,2]
[394017355,1763195432410,-500.0,0.00016973,2]
[394017356,1763195432420,-500.0,0.00016973,2]
[394017357,1763195432430,-511.69418968,0.00016973,2]
[394017358,1763195432439,-500.0,0.00016973,2]
[394017359,1763195432449,-300.0,0.00016998,2]
[394017361,1763195432461,-300.0,0.00016998,2]
[394017363,1763195432470,-550.0,0.00016998,2]
[394017364,1763195432480,-1200.0,0.00016998,2]
[394017365,1763195432489,-499.99999999,0.00016999,2]
[394017366,1763195432498,-500.0,0.00016999,2]
[394017367,1763195432507,-500.0,0.00016999,2]
[394017368,1763195432516,-500.0,0.00016999,2]
[394017369,1763195432526,-500.0,0.00016999,2]
[394017370,1763195432535,-500.0,0.00016999,2]
[394017371,1763195432544,-500.0,0.00016999,2]
[394017372,1763195432553,-500.0,0.00016999,2]
[394017373,1763195432562,-500.0,0.00016999,2]
[394017374,1763195432571,-500.0,0.00016999,2]
[394017375,1763195432581,-500.0,0.00016999,2]
[394017376,1763195432590,-313.93781753,0.00016999,2]
[394017377,1763195432599,-500.0,0.00016999,2]
[394017378,1763195432608,-500.0,0.00016999,2]
[394017379,1763195432618,-500.0,0.00016999,2]
[394017380,1763195432627,-500.0,0.00016999,2]
[394017381,1763195432636,-500.0,0.00016999,2]
[394017382,1763195432645,-500.0,0.00016999,2]
[394017383,1763195432654,-500.0,0.00016999,2]
[394017384,1763195432663,-162.88426925,0.00016999,2]
[394017385,1763195432678,-337.11573075,0.00016999,2]
[394017386,1763195432687,-500.0,0.00016999,2]
[394017387,1763195432697,-500.0,0.00016999,2]
[394017388,1763195432707,-500.0,0.00016999,2]
[394017389,1763195432716,-500.0,0.00016999,2]
[394017390,1763195432725,-500.0,0.00016999,2]
[394017391,1763195432734,-500.0,0.00016999,2]
[394017392,1763195432743,-500.0,0.00016999,2]
[394017393,1763195432752,-500.0,0.00016999,2]
[394017394,1763195432761,-144.55972925,0.00016999,2]
[394017395,1763195432772,-355.44027075,0.00016999,2]
[394017396,1763195432781,-500.0,0.00016999,2]
[394017397,1763195432790,-500.0,0.00016999,2]
[394017398,1763195432799,-158.2038482,0.00016999,2]
[394017399,1763195432808,-500.0,0.00016999,2]
[394017400,1763195432817,-499.99999999,0.00016999,2]
[394017401,1763195432827,-173172.88179488,0.00017,2]
[394017402,1763195432835,-500.0,0.00017,6]
[394017403,1763195432845,-372.75,0.0001704,2]
[394017404,1763195432854,-214.29,0.00017045,2]
[394017405,1763195432863,-700.0,0.000171,6]
[394017406,1763195432872,-999.0,0.00017145,3]
[394017407,1763195432882,-219.14,0.00017184,2]
[394017408,1763195432891,-1000.0,0.000172,6]
[394017409,1763195432899,-150.0,0.00017279,2]
[394017410,1763195432908,-166.66,0.0001728,2]
[394017411,1763195432917,-1300.0,0.000173,6]
[394017412,1763195432926,-168.0,0.00017345,2]
[394017413,1763195432935,-168.0,0.00017398,2]
[394017414,1763195432944,-200.0,0.000174,6]
[394017415,1763195432953,-169.37,0.00017479,2]
[394017416,1763195432963,-169.37,0.00017479,2]
[394017417,1763195432971,-171.39,0.00017479,2]
[394017418,1763195432981,-169.37,0.00017479,2]
[394017419,1763195432990,-169.37,0.00017479,2]
[394017420,1763195432998,-169.37,0.00017479,2]
[394017421,1763195433007,-169.37,0.00017479,2]
[394017422,1763195433016,-2000.0,0.000175,2]
[394017423,1763195433025,-200.0,0.000175,6]
[394017424,1763195433034,-168.0,0.00017502,2]
[394017425,1763195433043,-771.11491252,0.00017521,2]
[394017426,1763195433052,-270.51067277,0.00017521,2]
[394017427,1763195433062,-479.0,0.00017532,2]
[394017428,1763195433071,-250.0,0.00017532,2]
[394017429,1763195433080,-550.1,0.00017534,2]
[394017430,1763195433089,-550.1,0.00017534,2]
[394017431,1763195433098,-550.1,0.00017534,2]
[394017432,1763195433107,-550.1,0.00017534,2]
[394017433,1763195433115,-550.1,0.00017534,2]
[394017434,1763195433125,-550.1,0.00017534,2]
[394017435,1763195433134,-550.1,0.00017534,2]
[394017436,1763195433143,-550.1,0.00017534,2]
[394017437,1763195433152,-1100.2,0.00017534,2]
[394017438,1763195433161,-550.1,0.00017534,2]
[394017439,1763195433170,-1100.2,0.00017534,2]
[394017440,1763195433179,-550.1,0.00017534,2]
[394017441,1763195433188,-550.1,0.00017534,2]
[394017442,1763195433197,-555.93,0.00017534,2]
[394017443,1763195433207,-338.74,0.00017578,2]
[394017444,1763195433217,-169.37,0.00017578,2]
[394017445,1763195433226,-200.0,0.000176,6]
[394017446,1763195433235,-166.66,0.00017616,2]
[394017447,1763195433244,-166.66,0.00017625,2]
[394017448,1763195433254,-163.00519291,0.00017678,2]
[394017449,1763195433263,-550.1,0.00017678,2]
[394017450,1763195433274,-550.1,0.000177,2]
[394017451,1763195433283,-550.1,0.000177,2]
[394017452,1763195433293,-200.0,0.000177,6]
[394017453,1763195433303,-168.0,0.00017723,2]
[394017454,1763195433312,-168.0,0.00017752,2]
[394017455,1763195433321,-800.0,0.000178,6]
[394017456,1763195433331,-1000.0,0.00017899,2]
[394017457,1763195433340,-500.0,0.00017899,2]
[394017458,1763195433349,-249.80199804,0.00017899,2]
[394017459,1763195433359,-289.49080522,0.00017899,2]
[394017460,1763195433368,-500.0,0.00017899,2]
[394017461,1763195433378,-627.08192174,0.00017899,2]
[394017462,1763195433391,-7431.693,0.000179,2]
[394017463,1763195433401,-550.1,0.000179,2]
[394017464,1763195433410,-550.1,0.000179,2]
[394017465,1763195433419,-550.1,0.000179,2]
[394017466,1763195433429,-550.1,0.000179,2]
[394017467,1763195433438,-10000.01,0.000179,2]
[394017468,1763195433447,-1000.0,0.000179,2]
[394017469,1763195433458,-1000.0,0.000179,2]
[394017470,1763195433468,-356.1842,0.000179,2]
[394017471,1763195433476,-4671.9018,0.000179,2]
[394017472,1763195433486,-19378.40966869,0.000179,2]
[394017473,1763195433495,-151.54603876,0.000179,2]
[394017474,1763195433506,-10472.80432024,0.000179,2]
[394017475,1763195433515,-208.50221314,0.000179,3]
[394017476,1763195433524,-1000.0,0.0001797,2]
[394017477,1763195433533,-500.0,0.0001797,2]
[394017478,1763195433543,-500.0,0.0001797,2]
[394017479,1763195433553,-1000.0,0.0001797,2]
[394017480,1763195433562,-171.63434338,0.00017973,2]
[394017481,1763195433572,-500.0,0.00017973,2]
[394017482,1763195433581,-281.72554585,0.00017973,2]
[394017483,1763195433591,-500.0,0.00017973,2]
[394017484,1763195433600,-292.48055508,0.00017973,2]
[394017485,1763195433610,-605.9221961,0.00017973,2]